fUST/lending_fUST_20240905
["ID","MTS","AMOUNT","RATE_DAILY","PERIOD"]
[337180151,1725492638468,-250.0,0.00021817,2]
[337180152,1725492638479,-5559.28678273,0.00021824,2]
[337180153,1725492638489,-250.0,0.00021875,2]
[337180154,1725492638499,-250.0,0.00021932,2]
[337180155,1725492638508,-250.0,0.00021989,2]
[337180156,1725492638518,-957.67,0.00021991,2]
[337180157,1725492638528,-660.35,0.00021992,2]
[337180158,1725492638538,-7640.57,0.00021992,2]
[337180159,1725492638548,-3001.31,0.00021992,2]
[337180160,1725492638558,-974.26,0.00021992,2]
[337180161,1725492638568,-1100.73,0.00021992,2]
[337180162,1725492638577,-926.74,0.00021992,2]
[337180163,1725492638587,-500.0,0.00021992,2]
[337180164,1725492638596,-664.52,0.00021992,2]
[337180165,1725492638606,-5727.19,0.00021992,2]
[337180166,1725492638616,-1285.53,0.00021992,2]
[337180167,1725492638625,-1385.16,0.00021992,2]
[337180168,1725492638636,-3754.45,0.00021992,2]
[337180169,1725492638645,-150.0,0.0002211,2]
[337180170,1725492638655,-5559.28678273,0.00022116,2]
[337180171,1725492638664,-500.0,0.00022169,2]
[337180172,1725492638673,-7558.6211698,0.0002217,2]
[337180173,1725492638683,-7558.6211698,0.0002217,2]
[337180174,1725492638692,-7558.6211698,0.00022171,2]
[337180175,1725492638702,-7558.6211698,0.00022171,2]
[337180176,1725492638712,-7558.6211698,0.00022171,2]
[337180177,1725492638722,-825.31,0.00022191,3]
[337180178,1725492638732,-412.65,0.00022191,3]
[337180179,1725492638742,-206.33,0.00022191,3]
[337180180,1725492638752,-619.01,0.00022191,3]
[337180181,1725492638761,-209.976416,0.00022192,2]
[337180182,1725492638770,-309.72313336,0.000222,2]
[337180183,1725492638780,-221360.475692,0.00022201,3]
[337180184,1725492638790,-42072.7223825,0.00022201,2]
[337180185,1725492638801,-196.39957798,0.0002221,2]
[337180186,1725492638810,-528.08258609,0.0002221,2]
[337180187,1725492638820,-500.0,0.0002221,2]
[337180188,1725492638830,-500.0,0.0002221,2]
[337180189,1725492638839,-271.71483328,0.0002221,2]
[337180190,1725492638849,-500.0,0.0002221,2]
[337180191,1725492638859,-500.0,0.0002221,2]
[337180192,1725492638868,-500.0,0.0002221,2]
[337180194,1725492638878,-291.90665985,0.0002221,2]
[337180196,1725492638887,-500.0,0.0002221,2]
[337180198,1725492638898,-500.0,0.0002221,2]
[337180200,1725492638910,-6637.36,0.00022211,2]
[337180202,1725492638923,-1956.16,0.00022211,2]
[337180204,1725492638933,-1458.74,0.00022211,2]
[337180206,1725492638942,-500.0,0.00022211,2]
[337180208,1725492638952,-500.0,0.00022211,2]
[337180210,1725492638962,-1209.43,0.00022211,2]
[337180212,1725492638972,-500.0,0.00022211,2]
[337180213,1725492638982,-2829.82,0.00022211,2]
[337180215,1725492638992,-500.0,0.00022211,2]
[337180217,1725492639003,-500.0,0.00022211,2]
[337180219,1725492639013,-500.0,0.00022211,2]
[337180221,1725492639026,-530.73,0.00022211,2]
[337180223,1725492639036,-7985.83,0.00022211,2]
[337180226,1725492639046,-1278.44,0.00022211,2]
[337180228,1725492639056,-8345.47,0.00022211,2]
[337180230,1725492639066,-4462.91,0.00022211,2]
[337180231,1725492639076,-500.0,0.00022211,2]
[337180234,1725492639086,-929.91,0.00022211,2]
[337180236,1725492639096,-500.0,0.00022211,2]
[337180238,1725492639107,-500.0,0.00022211,2]
[337180240,1725492639118,-505.88458329,0.00022211,2]
[337180242,1725492639128,-1719.64,0.00022211,2]
[337180244,1725492639137,-1144.86,0.00022211,2]
[337180246,1725492639148,-500.0,0.00022211,2]
[337180248,1725492639158,-38978.95172142,0.0002226,3]
[337180250,1725492639171,-826.57062301,0.0002226,3]
[337180253,1725492639184,-28599.56712296,0.0002226,3]
[337180255,1725492639196,-61749.12815919,0.0002226,3]
[337180357,1725492640181,-252.174225,0.000222,2]
[337180371,1725492640308,-253.5623378,0.000222,2]
[337180373,1725492640318,-17453.05300902,0.0002226,3]
[337180375,1725492640330,-295113.6807484,0.0002226,3]
[337180377,1725492640340,-84145.4447651,0.0002226,2]
[337180379,1725492640350,-957.67,0.00022265,2]
[337180381,1725492640360,-660.35,0.00022266,2]
[337180383,1725492640370,-7640.57,0.00022266,2]
[337180385,1725492640379,-3001.31,0.00022266,2]
[337180387,1725492640389,-974.26,0.00022266,2]
[337180389,1725492640399,-1100.73,0.00022266,2]
[337180391,1725492640408,-926.74,0.00022266,2]
[337180393,1725492640418,-500.0,0.00022266,2]
[337180395,1725492640428,-664.52,0.00022266,2]
[337180397,1725492640438,-5727.19,0.00022266,2]
[337180399,1725492640447,-1285.53,0.00022266,2]
[337180401,1725492640457,-1385.16,0.00022266,2]
[337180403,1725492640466,-3754.45,0.00022266,2]
[337180405,1725492640477,-500.0,0.00022273,2]
[337180407,1725492640487,-500.0,0.00022273,2]
[337180409,1725492640497,-500.0,0.00022273,2]
[337180411,1725492640507,-158.57494327,0.00022273,2]
[337180413,1725492640516,-201.21275536,0.00022273,2]
[337180415,1725492640526,-158.63137592,0.00022273,2]
[337180417,1725492640539,-200.15807288,0.00022273,2]
[337180419,1725492640550,-500.0,0.00022279,2]
[337180421,1725492640560,-500.0,0.0002228,2]
[337180423,1725492640570,-500.0,0.0002228,2]
[337180425,1725492640580,-500.0,0.0002228,2]
[337180428,1725492640590,-500.0,0.0002228,2]
[337180430,1725492640600,-500.0,0.0002228,2]
[337180432,1725492640610,-500.0,0.0002228,2]
[337180434,1725492640620,-1000.0,0.0002228,5]
[337180436,1725492640630,-509.80361924,0.0002228,2]
[337180438,1725492640640,-500.0,0.0002228,2]
[337180440,1725492640650,-1328.13,0.0002228,2]
[337180442,1725492640659,-901.73,0.0002228,2]
[337180444,1725492640669,-500.0,0.0002228,2]
[337180446,1725492640678,-500.0,0.0002228,2]
[337180448,1725492640687,-500.0,0.0002228,2]
[337180450,1725492640697,-500.0,0.0002228,2]
[337180452,1725492640706,-500.0,0.0002228,2]
[337180453,1725492640716,-757.34,0.0002228,2]
[337180456,1725492640726,-509.31649831,0.0002228,2]
[337180457,1725492640736,-500.0,0.0002228,2]
[337180459,1725492640746,-219.86688144,0.0002228,2]
[337180461,1725492640755,-500.0,0.0002228,2]
[337180463,1725492640765,-500.0,0.0002228,2]
[337180465,1725492640774,-500.0,0.0002228,2]
[337180468,1725492640789,-500.0,0.0002228,2]
[337180470,1725492640800,-506.1308689,0.0002228,2]
[337180472,1725492640811,-898.56013,0.0002228,7]
[337180474,1725492640821,-898.56013,0.0002228,7]
[337180476,1725492640831,-503.17098668,0.0002228,2]
[337180478,1725492640841,-4635.19,0.0002228,2]
[337180488,1725492641089,-500.0,0.0002228,2]
[337180489,1725492641102,-868.91,0.0002228,2]
[337180490,1725492641112,-500.0,0.0002228,2]
[337180491,1725492641123,-500.0,0.0002228,2]
[337180493,1725492641132,-1593.27,0.0002228,2]
[337180494,1725492641141,-573.33,0.0002228,2]
[337180495,1725492641151,-500.0,0.0002228,2]
[337180497,1725492641162,-1934.98,0.0002228,2]
[337180499,1725492641171,-500.0,0.0002228,2]
[337180501,1725492641181,-653.16,0.0002228,2]
[337180503,1725492641190,-500.0,0.0002228,2]
[337180505,1725492641201,-500.0,0.0002228,2]
[337180507,1725492641212,-3162.62,0.0002228,2]
[337180509,1725492641222,-500.0,0.0002228,2]
[337180511,1725492641233,-546.85,0.0002228,2]
[337180513,1725492641242,-151.0,0.0002228,7]
[337180515,1725492641251,-572.71,0.0002228,2]
[337180517,1725492641260,-832.58,0.0002228,2]
[337180519,1725492641270,-500.0,0.0002228,2]
[337180521,1725492641280,-1147.84,0.0002228,2]
[337180523,1725492641290,-1077.95,0.0002228,2]
[337180525,1725492641299,-689.09,0.0002228,2]
[337180528,1725492641309,-500.0,0.0002228,2]
[337180530,1725492641319,-151.0,0.0002228,7]
[337180532,1725492641328,-500.0,0.0002228,2]
[337180534,1725492641338,-500.0,0.0002228,2]
[337180536,1725492641347,-500.0,0.0002228,2]
[337180538,1725492641357,-1120.1,0.0002228,2]
[337180540,1725492641365,-500.0,0.0002228,2]
[337180542,1725492641375,-500.0,0.0002228,2]
[337180544,1725492641385,-1932.228531,0.0002228,7]
[337180546,1725492641394,-153.11807308,0.0002228,2]
[337180548,1725492641404,-981.15,0.0002228,2]
[337180550,1725492641413,-1932.228531,0.0002228,7]
[337180551,1725492641423,-617.74,0.0002228,2]
[337180553,1725492641433,-556.25,0.0002228,2]
[337180556,1725492641443,-2312.446311,0.0002228,7]
[337180558,1725492641454,-500.0,0.0002228,2]
[337180560,1725492641463,-151.0,0.0002228,7]
[337180561,1725492641472,-2312.446311,0.0002228,7]
[337180563,1725492641482,-1393.45,0.0002228,2]
[337180565,1725492641491,-151.0,0.0002228,7]
[337180568,1725492641501,-500.0,0.0002228,2]
[337180570,1725492641510,-504.98,0.0002228,2]
[337180572,1725492641519,-500.0,0.0002228,2]
[337180574,1725492641529,-1313.06,0.0002228,2]
[337180576,1725492641539,-500.0,0.0002228,2]
[337180578,1725492641551,-500.0,0.0002228,2]
[337180580,1725492641563,-500.0,0.0002228,2]
[337180582,1725492641574,-446.83111643,0.0002228,2]
[337180584,1725492641584,-1433.73,0.0002228,2]
[337180586,1725492641594,-917.69,0.0002228,2]
[337180588,1725492641604,-500.0,0.0002228,2]
[337180591,1725492641615,-342.80628231,0.0002228,2]
[337180593,1725492641625,-500.0,0.0002228,2]
[337180595,1725492641636,-701.76,0.0002228,2]
[337180597,1725492641645,-13240.85,0.0002228,2]
[337180599,1725492641656,-500.0,0.0002228,2]
[337180601,1725492641666,-500.0,0.0002228,2]
[337180603,1725492641675,-500.0,0.0002228,2]
[337180605,1725492641686,-505.02019746,0.0002228,2]
[337180607,1725492641695,-500.0,0.0002228,2]
[337180609,1725492641705,-500.0,0.0002228,2]
[337180611,1725492641714,-500.0,0.0002228,2]
[337180613,1725492641724,-500.0,0.0002228,2]
[337180615,1725492641733,-805.5,0.0002228,2]
[337180617,1725492641743,-500.0,0.0002228,2]
[337180619,1725492641753,-916.26,0.0002228,2]
[337180621,1725492641763,-1265.86,0.0002228,2]
[337180623,1725492641772,-468.7996942,0.0002228,2]
[337180625,1725492641782,-500.0,0.0002228,2]
[337180627,1725492641792,-706.21,0.0002228,2]
[337180629,1725492641802,-1045.39,0.0002228,2]
[337180631,1725492641812,-559.92,0.0002228,2]
[337180633,1725492641823,-1205.38,0.0002228,2]
[337180635,1725492641833,-500.0,0.0002228,2]
[337180637,1725492641843,-500.0,0.0002228,2]
[337180639,1725492641853,-4402.67,0.0002228,2]
[337180641,1725492641863,-500.0,0.0002228,2]
[337180643,1725492641873,-8660.31,0.0002228,2]
[337180645,1725492641883,-500.0,0.0002228,2]
[337180647,1725492641894,-500.0,0.0002229,2]
[337180649,1725492641904,-500.0,0.0002229,2]
[337180651,1725492641919,-500.0,0.0002229,2]
[337180653,1725492641932,-500.0,0.0002229,2]
[337180655,1725492641943,-500.0,0.0002229,2]
[337180657,1725492641953,-500.0,0.0002229,2]
[337180659,1725492641963,-500.0,0.0002229,2]
[337180661,1725492641972,-500.0,0.0002229,2]
[337180663,1725492641981,-500.0,0.0002229,2]
[337180665,1725492641991,-500.0,0.0002229,2]
[337180667,1725492642000,-500.0,0.0002229,2]
[337180669,1725492642010,-453.27484179,0.0002229,2]
[337180671,1725492642019,-500.0,0.0002229,2]
[337180673,1725492642030,-500.0,0.0002229,2]
[337180675,1725492642040,-500.0,0.0002229,2]
[337180677,1725492642049,-167.6900629,0.0002229,2]
[337180679,1725492642059,-500.0,0.0002229,2]
[337180681,1725492642068,-610.49594096,0.0002229,2]
[337180683,1725492642078,-604.27,0.0002229,2]
[337180685,1725492642087,-500.0,0.0002229,2]
[337180687,1725492642096,-500.0,0.0002229,2]
[337180688,1725492642105,-503.82750373,0.0002229,2]
[337180690,1725492642115,-433.01092873,0.0002229,2]
[337180693,1725492642127,-500.0,0.0002229,2]
[337180695,1725492642137,-500.0,0.0002229,2]
[337180697,1725492642147,-500.0,0.0002229,2]
[337180699,1725492642158,-500.0,0.0002229,2]
[337180701,1725492642167,-500.0,0.0002229,2]
[337180703,1725492642178,-500.0,0.0002229,2]
[337180705,1725492642188,-500.0,0.0002229,2]
[337180707,1725492642197,-500.0,0.0002229,2]
[337180709,1725492642207,-500.0,0.0002229,2]
[337180711,1725492642217,-500.0,0.0002229,2]
[337180713,1725492642226,-500.0,0.0002229,2]
[337180715,1725492642237,-500.0,0.0002229,2]
[337180717,1725492642246,-1217.83,0.0002229,2]
[337180719,1725492642257,-500.0,0.0002229,2]
[337180721,1725492642267,-500.0,0.0002229,2]
[337180723,1725492642277,-500.0,0.0002229,2]
[337180725,1725492642288,-500.0,0.0002229,2]
[337180727,1725492642299,-500.0,0.0002229,2]
[337180729,1725492642309,-500.0,0.0002229,2]
[337180731,1725492642319,-500.0,0.0002229,2]
[337180733,1725492642331,-500.0,0.0002229,2]
[337180735,1725492642341,-500.0,0.0002229,2]
[337180737,1725492642352,-500.0,0.0002229,2]
[337180739,1725492642362,-200.0,0.0002229,2]
[337180741,1725492642371,-500.0,0.0002229,2]
[337180743,1725492642381,-265.02171347,0.0002229,2]
[337180746,1725492642391,-500.0,0.0002229,2]
[337180748,1725492642401,-500.0,0.0002229,2]
[337180750,1725492642412,-562.43239365,0.0002229,2]
[337180752,1725492642421,-500.0,0.0002229,2]
[337180754,1725492642431,-500.0,0.0002229,2]
[337180756,1725492642440,-500.0,0.0002229,2]
[337180758,1725492642450,-500.0,0.0002229,2]
[337180760,1725492642460,-500.0,0.0002229,2]
[337180762,1725492642470,-500.0,0.0002229,2]
[337180764,1725492642479,-500.0,0.0002229,2]
[337180766,1725492642489,-477.003583,0.0002229,2]
[337180768,1725492642499,-500.0,0.0002229,2]
[337180770,1725492642509,-500.0,0.0002229,2]
[337180772,1725492642519,-500.0,0.0002229,2]
[337180774,1725492642530,-500.0,0.0002229,2]
[337180776,1725492642541,-500.0,0.0002229,2]
[337180778,1725492642552,-500.0,0.0002229,2]
[337180781,1725492642561,-599.91,0.0002229,2]
[337180783,1725492642571,-500.0,0.0002229,2]
[337180785,1725492642581,-507.92337057,0.0002229,2]
[337180787,1725492642591,-500.0,0.0002229,2]
[337180789,1725492642603,-445.66269814,0.0002229,2]
[337180791,1725492642615,-500.0,0.0002229,2]
[337180793,1725492642624,-500.0,0.0002229,2]
[337180796,1725492642633,-500.0,0.0002229,2]
[337180800,1725492642644,-351.79274616,0.0002229,2]
[337180803,1725492642653,-500.0,0.0002229,2]
[337180806,1725492642662,-507.18006027,0.0002229,2]
[337180808,1725492642672,-1322.63,0.0002229,2]
[337180810,1725492642681,-500.0,0.0002229,2]
[337180812,1725492642690,-500.0,0.0002229,2]
[337180814,1725492642699,-352.80504995,0.0002229,2]
[337180816,1725492642709,-500.0,0.0002229,2]
[337180818,1725492642718,-500.0,0.0002229,2]
[337180820,1725492642728,-500.0,0.0002229,2]
[337180822,1725492642737,-550.74394511,0.0002229,2]
[337180824,1725492642746,-500.0,0.0002229,2]
[337180827,1725492642756,-500.0,0.0002229,2]
[337180829,1725492642765,-500.0,0.0002229,2]
[337180832,1725492642775,-500.0,0.0002229,2]
[337180835,1725492642784,-558.92913785,0.0002229,2]
[337180838,1725492642794,-500.0,0.0002229,2]
[337180841,1725492642804,-846.44,0.0002229,2]
[337180845,1725492642815,-500.0,0.0002229,2]
[337180848,1725492642824,-500.0,0.0002229,2]
[337180852,1725492642834,-500.0,0.0002229,2]
[337180854,1725492642845,-500.0,0.0002229,2]
[337180856,1725492642855,-500.0,0.0002229,2]
[337180858,1725492642865,-500.0,0.0002229,2]
[337180860,1725492642875,-505.9870657,0.0002229,2]
[337180862,1725492642885,-183.55153083,0.0002229,2]
[337180864,1725492642894,-500.0,0.0002229,2]
[337180866,1725492642903,-500.0,0.0002229,2]
[337180868,1725492642914,-500.0,0.0002229,2]
[337180870,1725492642925,-653.63,0.0002229,2]
[337180872,1725492642935,-500.0,0.0002229,2]
[337180874,1725492642945,-500.0,0.0002229,2]
[337180876,1725492642955,-500.0,0.0002229,2]
[337180878,1725492642965,-500.0,0.0002229,2]
[337180880,1725492642975,-488.48989609,0.0002229,2]
[337180882,1725492642986,-500.0,0.0002229,2]
[337180884,1725492643000,-964.25,0.0002229,2]
[337180886,1725492643011,-500.0,0.0002229,2]
[337180888,1725492643021,-500.0,0.0002229,2]
[337180891,1725492643031,-576.16,0.0002229,2]
[337180893,1725492643042,-500.0,0.0002229,2]
[337180895,1725492643052,-500.0,0.0002229,2]
[337180897,1725492643061,-500.0,0.0002229,2]
[337180899,1725492643070,-500.0,0.0002229,2]
[337180901,1725492643080,-193.73107102,0.0002229,2]
[337180903,1725492643090,-500.0,0.0002229,2]
[337180905,1725492643099,-500.0,0.0002229,2]
[337180907,1725492643108,-500.0,0.0002229,2]
[337180909,1725492643117,-500.0,0.0002229,2]
[337180911,1725492643127,-659.26,0.0002229,2]
[337180913,1725492643135,-500.0,0.0002229,2]
[337180914,1725492643145,-600.13,0.0002229,2]
[337180916,1725492643154,-500.0,0.0002229,2]
[337180918,1725492643163,-1468.96,0.0002229,2]
[337180920,1725492643173,-500.0,0.0002229,2]
[337180922,1725492643183,-500.0,0.0002229,2]
[337180924,1725492643192,-381.7855058,0.0002229,2]
[337180926,1725492643202,-500.0,0.0002229,2]
[337180928,1725492643213,-500.0,0.0002229,2]
[337180931,1725492643224,-500.0,0.0002229,2]
[337180933,1725492643235,-1025.18,0.0002229,2]
[337180935,1725492643244,-500.0,0.0002229,2]
[337180938,1725492643254,-500.0,0.0002229,2]
[337180941,1725492643263,-500.0,0.0002229,2]
[337180944,1725492643272,-500.0,0.0002229,2]
[337180947,1725492643282,-1155.27,0.0002229,2]
[337180950,1725492643292,-500.0,0.0002229,2]
[337180953,1725492643301,-500.0,0.0002229,2]
[337180956,1725492643312,-488.47967975,0.0002229,2]
[337180958,1725492643321,-500.0,0.0002229,2]
[337180960,1725492643330,-1485.25,0.0002229,2]
[337180962,1725492643340,-500.0,0.0002229,2]
[337180964,1725492643349,-500.0,0.0002229,2]
[337180966,1725492643358,-151.0,0.0002229,7]
[337180968,1725492643367,-500.0,0.0002229,2]
[337180970,1725492643376,-1460.25,0.0002229,2]
[337180971,1725492643386,-500.0,0.0002229,2]
[337180973,1725492643395,-500.0,0.0002229,2]
[337180975,1725492643404,-15428.18,0.0002229,2]
[337180977,1725492643414,-653.99,0.0002229,2]
[337180979,1725492643423,-500.0,0.0002229,2]
[337180981,1725492643433,-500.0,0.0002229,2]
[337180983,1725492643442,-505.28446612,0.0002229,2]
[337180985,1725492643451,-500.0,0.0002229,2]
[337180987,1725492643461,-500.0,0.0002229,2]
[337180989,1725492643471,-4527.83,0.0002229,2]
[337180991,1725492643480,-520.92,0.0002229,2]
[337180993,1725492643489,-500.0,0.0002229,2]
[337180995,1725492643498,-1630.33,0.0002229,2]
[337180997,1725492643507,-1308.33,0.0002229,2]
[337180999,1725492643516,-500.0,0.0002229,2]
[337181000,1725492643526,-604.27,0.00022291,2]
[337181002,1725492643535,-500.0,0.00022291,2]
[337181004,1725492643546,-500.0,0.00022291,2]
[337181006,1725492643555,-832.03,0.00022291,2]
[337181008,1725492643564,-500.0,0.00022291,2]
[337181010,1725492643573,-500.0,0.00022292,2]
[337181012,1725492643582,-1634.16,0.00022292,2]
[337181014,1725492643592,-500.0,0.00022292,2]
[337181015,1725492643601,-500.0,0.00022292,2]
[337181016,1725492643611,-500.0,0.00022292,2]
[337181017,1725492643620,-500.0,0.00022292,2]
[337181018,1725492643629,-638.75,0.00022292,2]
[337181019,1725492643638,-523.37,0.00022292,2]
[337181020,1725492643646,-500.0,0.00022292,2]
[337181021,1725492643656,-509.43,0.00022292,2]
[337181022,1725492643665,-500.0,0.00022292,2]
[337181024,1725492643674,-500.0,0.00022292,2]
[337181026,1725492643683,-530.81,0.00022292,2]
[337181028,1725492643693,-351.98239707,0.00022292,2]
[337181030,1725492643702,-760.46,0.00022292,2]
[337181032,1725492643711,-500.0,0.00022292,2]
[337181034,1725492643721,-500.0,0.00022292,2]
[337181036,1725492643730,-1112.9,0.00022292,2]
[337181038,1725492643740,-805.08,0.00022292,2]
[337181040,1725492643749,-600.79,0.00022292,2]
[337181042,1725492643760,-500.0,0.00022292,2]
[337181045,1725492643771,-500.0,0.00022292,2]
[337181047,1725492643782,-468.41236695,0.00022292,2]
[337181049,1725492643793,-500.0,0.00022292,2]
[337181051,1725492643803,-500.0,0.00022292,2]
[337181053,1725492643812,-466.40361962,0.00022292,2]
[337181055,1725492643822,-518.03,0.00022292,2]
[337181057,1725492643831,-589.33,0.00022292,2]
[337181059,1725492643840,-500.0,0.00022292,2]
[337181061,1725492643852,-585.43,0.00022292,2]
[337181063,1725492643861,-1385.17,0.00022292,2]
[337181065,1725492643870,-500.0,0.00022292,2]
[337181067,1725492643880,-1950.33,0.00022292,2]
[337181069,1725492643889,-787.3,0.00022292,2]
[337181071,1725492643898,-500.0,0.00022292,2]
[337181073,1725492643908,-688.18,0.00022292,2]
[337181075,1725492643922,-500.0,0.00022292,2]
[337181077,1725492643931,-500.0,0.00022292,2]
[337181079,1725492643941,-500.0,0.00022292,2]
[337181081,1725492643950,-500.0,0.00022292,2]
[337181083,1725492643959,-500.0,0.00022292,2]
[337181086,1725492643973,-500.0,0.00022292,2]
[337181088,1725492643985,-500.0,0.00022292,2]
[337181090,1725492643998,-500.0,0.00022292,2]
[337181093,1725492644013,-500.0,0.00022292,2]
[337181095,1725492644026,-500.0,0.00022292,2]
[337181098,1725492644040,-500.0,0.00022292,2]
[337181100,1725492644050,-500.0,0.00022292,2]
[337181102,1725492644062,-500.0,0.00022292,2]
[337181105,1725492644074,-500.0,0.00022292,2]
[337181107,1725492644088,-500.0,0.00022292,2]
[337181110,1725492644101,-500.0,0.00022292,2]
[337181112,1725492644114,-500.0,0.00022292,2]
[337181114,1725492644127,-500.0,0.00022292,2]
[337181117,1725492644140,-500.0,0.00022292,2]
[337181119,1725492644153,-500.0,0.00022292,2]
[337181121,1725492644164,-972.11,0.00022292,2]
[337181124,1725492644176,-500.0,0.00022292,2]
[337181126,1725492644188,-500.0,0.00022292,2]
[337181128,1725492644200,-500.0,0.00022292,2]
[337181131,1725492644212,-500.0,0.00022292,2]
[337181133,1725492644224,-500.0,0.00022292,2]
[337181135,1725492644235,-500.0,0.00022292,2]
[337181137,1725492644246,-500.0,0.00022292,2]
[337181139,1725492644258,-1250.37,0.00022292,2]
[337181141,1725492644269,-500.0,0.00022292,2]
[337181143,1725492644279,-500.0,0.00022292,2]
[337181145,1725492644292,-150.112233,0.000223,5]
[337181148,1725492644304,-150.112233,0.000223,3]
[337181150,1725492644316,-150.112233,0.000223,4]
[337181152,1725492644327,-232.035077,0.000223,4]
[337181154,1725492644338,-150.112233,0.000223,3]
[337181157,1725492644348,-150.112233,0.000223,5]
[337181159,1725492644358,-150.112233,0.000223,5]
[337181161,1725492644368,-150.112233,0.000223,2]
[337181163,1725492644380,-150.112233,0.000223,4]
[337181165,1725492644391,-150.112233,0.000223,3]
[337181168,1725492644402,-150.112233,0.000223,5]
[337181170,1725492644413,-150.112233,0.000223,4]
[337181172,1725492644425,-604.27,0.0002231,2]
[337181174,1725492644436,-500.0,0.0002231,2]
[337181177,1725492644448,-500.0,0.0002231,2]
[337181179,1725492644459,-500.0,0.0002231,2]
[337181181,1725492644471,-500.0,0.0002231,2]
[337181184,1725492644483,-500.0,0.00022379,2]
[337181186,1725492644495,-500.0,0.00022379,2]
[337181188,1725492644507,-500.0,0.00022379,2]
[337181190,1725492644519,-500.0,0.00022379,2]
[337181192,1725492644531,-500.0,0.00022379,2]
[337181195,1725492644542,-500.0,0.00022379,2]
[337181197,1725492644553,-545.01251204,0.00022379,2]
[337181199,1725492644563,-500.0,0.00022379,2]
[337181201,1725492644576,-500.0,0.00022379,2]
[337181203,1725492644587,-500.0,0.00022379,2]
[337181206,1725492644599,-500.0,0.00022379,2]
[337181208,1725492644610,-500.0,0.00022379,2]
[337181210,1725492644622,-500.0,0.00022379,2]
[337181212,1725492644634,-500.0,0.00022379,2]
[337181215,1725492644647,-151.0,0.00022381,2]
[337181217,1725492644657,-511.7949906,0.00022381,2]
[337181219,1725492644667,-604.27,0.0002239,2]
[337181221,1725492644679,-604.27,0.0002239,2]
[337181224,1725492644693,-604.27,0.0002239,2]
[337181226,1725492644705,-604.27,0.0002239,2]
[337181228,1725492644718,-604.27,0.0002239,2]
[337181231,1725492644732,-604.27,0.0002239,2]
[337181233,1725492644746,-604.27,0.0002239,2]
[337181235,1725492644757,-604.27,0.0002239,2]
[337181238,1725492644767,-604.27,0.0002239,2]
[337181240,1725492644777,-604.27,0.0002239,2]
[337181242,1725492644789,-604.27,0.0002239,2]
[337181244,1725492644799,-604.27,0.0002239,2]
[337181246,1725492644809,-604.27,0.0002239,2]
[337181248,1725492644820,-604.27,0.0002239,2]
[337181250,1725492644830,-604.27,0.0002239,2]
[337181252,1725492644840,-604.27,0.0002239,2]
[337181254,1725492644851,-604.27,0.0002239,2]
[337181256,1725492644861,-604.27,0.0002239,2]
[337181258,1725492644872,-604.27,0.0002239,2]
[337181260,1725492644883,-604.27,0.0002239,2]
[337181262,1725492644893,-604.48326276,0.0002239,2]